bitfinex-derivatives/quotes_SOLF0:USTF0_20240913
["timestamp","ask_amount","ask_price","bid_price","bid_amount"]
[1726249328592,14.79696698,137.01,136.98,3.6492]
[1726249329188,18.44546698,137.01,136.98,3.6492]
[1726249330896,11.23,136.99,136.97,3.6493]
[1726249332293,11.23,136.99,136.98,3.6492]
[1726249332492,3.6488,137.0,136.98,3.6492]
[1726249332894,18.58092213,137.01,136.98,3.6492]
[1726249333298,14.93232213,137.01,136.98,3.6492]
[1726249334202,18.58082213,137.01,136.98,3.6492]
[1726249334595,18.58082213,137.01,136.96,11.23]
[1726249335098,11.23,137.02,136.97,11.23]
[1726249335301,14.8037997,137.04,136.99,11.23]
[1726249335506,11.23,137.03,136.98,11.23]
[1726249335893,14.878,137.03,137.01,3.6483]
[1726249341004,11.23,137.02,136.99,3.6489]
[1726249341505,11.23,137.02,136.96,2.6952]
[1726249341506,11.23,137.02,137.0,3.6486]
[1726249342703,11.23,137.02,136.98,11.23]
[1726249343407,11.23,137.02,137.0,3.6486]
[1726249344005,14.878,137.03,137.0,3.6486]
[1726249344200,14.95697096,137.04,137.0,11.23]
[1726249344400,11.23,137.05,137.0,11.23]
[1726249344612,11.23,137.05,137.01,11.23]
[1726249345517,11.23,137.06,137.02,11.23]
[1726249345703,3.68351212,137.12,136.98,8.60695518]
[1726249345704,11.23,137.07,137.05,3.6473]
[1726249346420,14.83690533,137.07,137.05,3.6473]
[1726249346714,18.56517475,137.14,137.03,11.23]
[1726249346909,11.23,137.08,137.03,11.23]
[1726249347704,11.23,137.06,137.03,11.23]
[1726249348513,11.23,137.06,137.04,3.6475]
[1726249349207,3.6469,137.07,137.05,3.6473]
[1726249349406,14.8766,137.08,137.05,3.6473]
[1726249349605,14.8766,137.08,137.04,11.23]
[1726249349906,3.6461,137.1,137.07,3.6468]
[1726249350115,14.8761,137.1,137.07,3.6468]
[1726249350517,11.23,137.11,137.06,11.23]
[1726249351212,14.95707804,137.11,137.06,11.23]
[1726249351411,18.60307804,137.11,137.07,3.6467]
[1726249351914,18.60307804,137.11,137.08,3.6464]
[1726249352312,3.6461,137.1,137.06,11.23]
[1726249352512,3.6461,137.1,137.08,3.6465]
[1726249352814,18.60297804,137.11,137.08,3.6465]
[1726249353014,18.60297804,137.11,137.06,11.23]
[1726249353015,14.8759,137.11,137.09,3.6462]
[1726249354020,14.83866566,137.12,137.1,3.646]
[1726249354222,11.23,137.12,137.07,11.23]
[1726249354613,14.8758,137.11,137.08,3.6463]
[1726249355002,3.6454,137.13,137.1,3.646]
[1726249355215,14.8754,137.13,137.1,3.646]
[1726249355615,11.23,137.13,137.11,3.6457]
[1726249356112,11.23,137.16,137.14,3.6448]
[1726249356309,11.23,137.16,137.11,11.23]
[1726249356708,14.8745,137.16,137.13,3.6451]
[1726249357111,3.58697679,137.17,137.11,11.23]
[1726249357311,14.8745,137.16,137.13,3.6452]
[1726249358531,3.6448,137.15,137.11,1.3189]
[1726249358716,3.6448,137.15,137.12,3.6454]
[1726249358717,14.8748,137.15,137.12,3.6454]
[1726249361522,3.645,137.14,137.11,1.3189]
[1726249361720,11.23,137.15,137.11,1.3189]
[1726249362122,14.8748,137.15,137.12,3.6454]
[1726249363621,3.6451,137.14,137.11,1.3189]
[1726249363818,11.23,137.13,137.11,4.9645]
[1726249364122,11.23,137.12,137.08,11.23]
[1726249364522,11.23,137.12,137.1,3.6459]
[1726249365412,3.646,137.1,137.07,6.3182]
[1726249365618,11.23,137.11,137.07,13.9015]
[1726249366810,11.23,137.11,137.08,3.6465]
[1726249367922,11.23,137.1,137.07,6.3182]
[1726249368120,11.23,137.1,137.07,2.6715]
[1726249368418,3.6459,137.11,137.08,3.6464]
[1726249368609,11.23,137.1,137.08,3.6464]
[1726249369016,11.23,137.1,137.09,3.6463]
[1726249369213,18.43886906,137.12,137.09,3.6463]
[1726249369522,14.8756,137.12,137.09,3.6463]
[1726249369718,3.57093044,137.13,137.09,11.23]
[1726249369719,18.44623044,137.13,137.09,11.23]
[1726249370020,11.23,137.12,137.08,11.23]
[1726249371821,14.8755,137.12,137.09,3.6462]
[1726249372623,3.6455,137.12,137.08,11.23]
[1726249372827,14.8755,137.12,137.08,11.23]
[1726249373024,3.6458,137.11,137.08,11.23]
[1726249373418,3.6458,137.11,137.08,14.8764]
[1726249374819,14.8756,137.12,137.09,3.6463]
[1726249376418,11.23,137.12,137.09,3.6463]
[1726249376925,14.8756,137.12,137.09,3.6463]
[1726249377126,14.8756,137.12,137.1,3.646]
[1726249377334,11.23,137.12,137.1,3.646]
[1726249378228,11.23,137.12,137.08,11.23]
[1726249378630,14.8756,137.12,137.08,11.23]
[1726249378934,14.8756,137.12,137.09,3.6461]
[1726249381732,11.23,137.12,137.1,3.6459]
[1726249384430,3.645,137.14,137.09,11.23]
[1726249384636,11.23,137.13,137.09,11.23]
[1726249385035,14.8752,137.13,137.09,11.23]
[1726249385338,11.23,137.13,137.09,11.23]
[1726249385639,11.23,137.13,137.11,3.6456]
[1726249386931,14.8753,137.13,137.11,3.6456]
[1726249387331,3.6455,137.12,137.09,14.8762]
[1726249387535,11.23,137.13,137.09,11.23]
[1726249387734,14.94878608,137.14,137.1,11.23]
[1726249387931,11.23,137.14,137.11,11.23]
[1726249388131,11.23,137.15,137.11,11.23]
[1726249388636,11.23,137.15,137.12,3.6454]
[1726249388932,3.6490035,137.26,137.14,11.23]
[1726249388933,7.2844,137.25,137.14,11.23]
[1726249389236,11.23,137.18,137.14,11.23]
[1726249389432,11.23,137.18,137.15,11.23]
[1726249390031,11.23,137.18,137.16,3.6443]
[1726249390228,3.5643045,137.28,137.15,11.23]
[1726249390426,40.30520871,137.29,137.13,1.3883]
[1726249390632,3.57296267,137.29,137.2,11.23]
[1726249390837,11.23,137.24,137.19,11.23]
[1726249391031,11.23,137.24,137.2,3.6432]
[1726249391334,14.8723,137.24,137.19,11.23]
[1726249392036,14.8723,137.24,137.2,11.23]
[1726249392338,3.6423,137.24,137.21,3.6431]
[1726249392532,14.8721,137.25,137.21,3.6431]
[1726249392733,3.55727738,137.29,137.2,11.23]
[1726249392928,11.23,137.24,137.16,3.59226]
[1726249393128,14.8727,137.23,137.19,11.23]
[1726249393634,11.23,137.23,137.2,3.6432]
[1726249394537,11.23,137.23,137.19,14.8736]
[1726249394933,11.23,137.23,137.19,11.23]
[1726249395527,14.8727,137.23,137.19,14.8735]
[1726249396032,3.6427,137.23,137.2,3.6433]
[1726249396241,3.6427,137.23,137.2,14.8733]
[1726249396738,7.2738935,137.24,137.2,14.8733]
[1726249396941,18.5038935,137.24,137.21,3.643]
[1726249397133,18.5038935,137.24,137.2,11.23]
[1726249397335,18.5038935,137.24,137.2,14.8733]
[1726249397640,18.5038935,137.24,137.2,3.6433]
[1726249397641,3.6427,137.23,137.2,3.6433]
[1726249398032,14.8614935,137.24,137.2,14.8733]
[1726249398236,18.5039935,137.24,137.2,14.8733]
[1726249398639,14.8614935,137.24,137.2,14.8733]
[1726249399242,3.6427,137.23,137.2,14.8733]
[1726249399440,11.23,137.23,137.2,11.23]
[1726249399831,14.8727,137.23,137.2,11.23]
[1726249400031,14.8727,137.23,137.2,14.8733]
[1726249400229,14.8727,137.23,137.19,11.23]
[1726249400642,14.8727,137.23,137.19,14.8734]
[1726249401042,11.23,137.22,137.17,13.9772]
[1726249401245,11.23,137.2,137.17,6.3913]
[1726249401439,7.2823,137.29,137.17,2.7472]
[1726249401634,25.51326495,137.31,137.25,11.23]
[1726249401635,3.61326495,137.31,137.25,11.23]
[1726249401836,7.61131271,137.37,137.27,14.8715]
[1726249402037,7.61131271,137.37,137.26,11.23]
[1726249402240,11.23,137.3,137.26,11.23]
[1726249402432,11.23,137.29,137.24,11.23]
[1726249402637,3.641,137.29,137.24,11.23]
[1726249402832,14.92383518,137.3,137.25,3.6418]
[1726249403142,14.92383518,137.3,137.21,4.94523]
[1726249403143,11.23,137.3,137.26,11.23]
[1726249403643,14.8708,137.3,137.26,11.23]
[1726249404253,3.641,137.29,137.24,3.6422]
[1726249404444,3.641,137.29,137.24,14.8722]
[1726249404741,11.23,137.3,137.25,11.23]
[1726249404944,11.23,137.3,137.25,14.8718]
[1726249405338,11.23,137.27,137.22,2.6651]
[1726249405644,11.23,137.28,137.24,11.23]
[1726249405847,11.23,137.27,137.22,2.6651]
[1726249406043,14.8717,137.27,137.22,13.8951]
[1726249406243,11.23,137.27,137.22,13.8951]
[1726249406442,11.23,137.27,137.22,2.6651]
[1726249406747,3.56186493,137.31,137.22,13.8951]
[1726249406748,11.23,137.26,137.22,13.8951]
[1726249406947,11.23,137.26,137.22,2.6651]
[1726249407151,11.23,137.25,137.22,2.6651]
[1726249407848,3.56186493,137.31,137.24,11.23]
[1726249408045,11.23,137.29,137.24,11.23]
[1726249408443,3.6413,137.28,137.24,11.23]
[1726249409148,14.8713,137.28,137.23,14.8725]
[1726249409354,11.23,137.28,137.23,11.23]
[1726249409947,14.8715,137.27,137.23,11.23]
[1726249411042,14.8715,137.27,137.22,17.5378]
[1726249411556,11.23,137.26,137.22,6.3078]
[1726249411858,11.23,137.3,137.25,11.23]
[1726249412250,3.6412,137.29,137.25,11.23]
[1726249413254,3.6412,137.29,137.25,14.8719]
[1726249413559,11.23,137.3,137.25,11.23]
[1726249413754,11.23,137.3,137.26,3.6416]
[1726249413955,11.23,137.3,137.25,11.23]
[1726249414162,3.641,137.29,137.25,11.23]
[1726249414452,1.401,137.38,137.26,3.6417]
[1726249414648,14.8709,137.3,137.26,3.6417]
[1726249415861,3.641,137.29,137.25,14.8719]
[1726249416254,11.23,137.3,137.25,11.23]
[1726249416555,14.8707,137.3,137.25,11.23]
[1726249417348,11.23,137.3,137.26,3.6417]
[1726249417553,11.23,137.3,137.26,14.8717]
[1726249417757,14.8709,137.3,137.26,14.8717]
[1726249417951,3.60695083,137.32,137.27,14.8713]
[1726249418151,11.23,137.32,137.27,14.8713]
[1726249418360,3.6406,137.31,137.27,14.8713]
[1726249418764,11.23,137.32,137.27,11.23]
[1726249419258,3.6406,137.31,137.28,3.6411]
[1726249420245,3.6408,137.3,137.27,14.8714]
[1726249420449,11.23,137.32,137.27,11.23]
[1726249421051,3.6406,137.31,137.28,3.6411]
[1726249422868,3.6409,137.3,137.27,14.8715]
[1726249423369,3.6408,137.3,137.26,3.6415]
[1726249423551,3.6408,137.3,137.27,11.23]
[1726249423746,11.23,137.32,137.27,11.23]
[1726249423954,3.6407,137.3,137.27,14.8714]
[1726249425057,3.6405,137.31,137.28,3.6412]
[1726249425448,11.23,137.32,137.27,11.23]
[1726249425648,3.6407,137.3,137.27,14.8713]
[1726249427254,3.6407,137.3,137.27,3.6413]
[1726249427461,11.23,137.31,137.23,3.59383]
[1726249427771,14.87848961,137.33,137.27,11.23]
[1726249427953,11.23,137.33,137.27,11.23]
[1726249428154,3.6406,137.31,137.28,3.6412]
[1726249432468,3.6407,137.3,137.27,14.8714]
[1726249432860,3.641,137.29,137.24,3.59383]
[1726249433162,3.641,137.29,137.25,11.23]
[1726249433554,11.23,137.29,137.24,14.8722]
[1726249433964,3.6414,137.28,137.24,11.23]
[1726249434171,3.6414,137.28,137.25,3.642]
[1726249434463,11.23,137.29,137.24,11.23]
[1726249434673,11.23,137.27,137.22,2.6651]
[1726249434864,11.23,137.25,137.22,1.3562]
[1726249435059,11.23,137.23,137.19,3.6435]
[1726249435658,3.643,137.22,137.19,3.6435]
[1726249435858,11.23,137.21,137.16,4.91457]
[1726249436071,11.23,137.21,137.16,12.5527]
[1726249436258,14.8732,137.21,137.16,12.5527]
[1726249436568,11.23,137.21,137.16,12.5527]
[1726249436755,14.8733,137.21,137.16,12.5527]
[1726249436957,11.23,137.2,137.14,7.23703]
[1726249437256,11.23,137.18,137.13,11.23]
[1726249437458,11.23,137.19,137.15,11.23]
[1726249437667,14.89894734,137.19,137.15,14.8745]
[1726249438174,3.66894734,137.19,137.15,3.6445]
[1726249438373,3.6437,137.19,137.15,3.6445]
[1726249438571,7.36004505,137.19,137.15,3.6445]
[1726249439170,18.8706,137.23,137.14,17.51]
[1726249439371,18.8706,137.23,137.15,2.6384]
[1726249439667,17.51,137.23,137.15,2.6384]
[1726249439872,3.6432,137.21,137.17,3.644]
[1726249440173,3.6432,137.21,137.15,3.9896]
[1726249440369,3.6425,137.24,137.18,3.6437]
[1726249440570,3.6425,137.24,137.16,17.51]
[1726249440770,3.6425,137.24,137.16,21.10121]
[1726249441166,17.51,137.25,137.16,21.10121]
[1726249441565,17.51,137.25,137.18,3.6437]
[1726249442265,3.643,137.22,137.18,3.6437]
[1726249442472,17.51,137.25,137.16,21.10121]
[1726249442973,17.51,137.28,137.22,3.6428]
[1726249443179,17.51,137.28,137.2,2.7578]
[1726249443180,17.51,137.26,137.2,2.7578]
[1726249443872,3.6424,137.24,137.2,6.4009]
[1726249444180,17.51,137.26,137.2,6.4009]
[1726249444372,3.6424,137.24,137.21,3.6431]
[1726249444873,17.51,137.26,137.2,2.7578]
[1726249445472,21.14934829,137.26,137.2,2.7578]
[1726249445674,17.51,137.27,137.2,2.7578]
[1726249446376,3.6421,137.25,137.22,3.6427]
[1726249447082,17.51,137.27,137.2,20.2678]
[1726249447573,17.51,137.27,137.2,23.85901]
[1726249447780,21.1516,137.27,137.24,3.6421]
[1726249448677,3.6418,137.26,137.2,23.85901]
[1726249448881,17.51,137.27,137.2,23.85901]
[1726249449173,3.6419,137.26,137.22,3.6428]
[1726249449381,3.6419,137.26,137.2,23.85901]
[1726249449679,3.6419,137.26,137.23,3.6424]
[1726249451672,3.6422,137.25,137.22,3.6428]
[1726249452074,17.51,137.27,137.2,23.85901]
[1726249452869,3.6419,137.26,137.23,3.6424]
[1726249454579,17.51,137.26,137.21,3.6428]
[1726249454883,17.51,137.26,137.2,2.7578]
[1726249455273,3.6422,137.25,137.22,3.6427]
[1726249455473,3.6422,137.25,137.2,2.7578]
[1726249455474,17.51,137.26,137.2,2.7578]
[1726249455673,3.6427,137.23,137.2,6.401]
[1726249455871,17.51,137.26,137.2,2.7578]
[1726249456479,3.6424,137.24,137.21,3.6429]
[1726249457478,3.6424,137.24,137.2,2.7578]
[1726249457984,3.6424,137.24,137.21,3.6429]
[1726249458184,3.6426,137.23,137.2,2.7578]
[1726249459682,17.51,137.24,137.16,17.51]
[1726249459877,17.51,137.24,137.16,4.95581]
[1726249460080,11.2,137.2,137.19,3.6436]
[1726249461387,14.843,137.22,137.19,3.6436]
[1726249462887,3.6431,137.21,137.19,3.6436]
[1726249463492,14.843,137.22,137.19,3.6436]
[1726249463790,14.843,137.22,137.17,11.2]
[1726249463791,11.2,137.22,137.17,11.2]
[1726249463997,14.8432,137.21,137.17,11.2]
[1726249464686,14.8432,137.21,137.18,3.6436]
[1726249466192,11.2,137.21,137.19,3.6436]
[1726249466791,11.2,137.21,137.2,3.6434]
[1726249466994,3.6429,137.22,137.17,11.2]
[1726249467187,11.2,137.22,137.18,11.2]
[1726249467498,11.2,137.22,137.2,3.6432]
[1726249467794,3.6428,137.23,137.2,14.8432]
[1726249467992,14.8428,137.23,137.2,14.8432]
[1726249468386,14.8428,137.23,137.2,3.6432]
[1726249469584,14.8428,137.23,137.18,14.79121]
[1726249469585,11.2,137.23,137.21,3.6429]
[1726249470093,14.8426,137.23,137.21,3.6429]
[1726249471494,11.2,137.22,137.21,3.6429]
[1726249471697,14.8426,137.23,137.21,3.6429]
[1726249480197,11.2,137.22,137.21,3.6429]
[1726249482503,3.62533194,137.28,137.22,3.6426]
[1726249482712,9.9557,137.31,137.22,11.2]
[1726249482897,11.2,137.26,137.22,11.2]
[1726249483293,14.8419,137.26,137.23,3.6425]
[1726249483694,3.6421,137.25,137.23,3.6424]
[1726249484098,14.8421,137.25,137.23,3.6424]
[1726249484305,3.6421,137.25,137.23,3.6424]
[1726249484611,14.8421,137.25,137.22,3.6427]
[1726249484805,2.6744,137.31,137.22,11.2]
[1726249485106,11.2,137.3,137.27,3.6414]
[1726249485305,11.2,137.29,137.25,11.2]
[1726249485513,14.8413,137.28,137.25,3.6419]
[1726249486117,11.2,137.28,137.26,3.6416]
[1726249486310,14.841,137.29,137.26,3.6416]
[1726249487699,14.8414,137.28,137.24,11.2]
[1726249488099,11.2,137.28,137.25,3.642]
[1726249488411,14.8411,137.29,137.25,3.642]
[1726249488618,14.8411,137.29,137.24,11.2]
[1726249489413,11.2,137.29,137.26,3.6417]
[1726249489908,3.63328442,137.31,137.25,3.6419]
[1726249490097,11.2,137.27,137.25,3.6419]
[1726249490300,11.2,137.28,137.25,3.6419]
[1726249491802,14.8413,137.28,137.25,3.6419]
[1726249492511,3.65551191,137.3,137.26,3.6416]
[1726249492708,8.98522651,137.38,137.26,11.2]
[1726249493014,11.2,137.31,137.27,3.6414]
[1726249493520,3.6407,137.3,137.27,3.6414]
[1726249494612,14.8411,137.29,137.26,5.0434]
[1726249495614,14.8411,137.29,137.27,3.6415]
[1726249496520,14.8411,137.29,137.26,5.0433]
[1726249497318,3.6413,137.28,137.26,5.0433]
[1726249498914,3.6409,137.3,137.26,12.6017]
[1726249499115,14.8409,137.3,137.26,12.6017]
[1726249499617,14.841,137.29,137.26,1.4017]
[1726249500222,14.841,137.29,137.26,5.0433]
[1726249501711,1.4393,137.35,137.27,11.2]
[1726249502113,3.6405,137.31,137.28,3.6411]
[1726249502423,11.2,137.29,137.26,12.6017]
[1726249502920,11.2,137.27,137.22,3.63821]
[1726249503126,3.59685049,137.31,137.23,11.2]
[1726249503422,7.2795,137.34,137.23,11.2]
[1726249503423,11.2,137.28,137.23,11.2]
[1726249503617,11.2,137.28,137.23,12.6484]
[1726249503819,11.2,137.28,137.24,3.6422]
[1726249504118,11.2,137.28,137.23,12.6484]
[1726249504320,3.57681132,137.31,137.23,12.6484]
[1726249504518,11.2,137.27,137.23,12.6484]
[1726249505015,11.2,137.25,137.23,1.4484]
[1726249506216,11.2,137.25,137.23,5.0908]
[1726249506723,11.2,137.25,137.24,3.6423]
[1726249506916,11.2,137.25,137.23,1.4484]
[1726249507314,11.2,137.25,137.23,5.0908]
[1726249508018,11.2,137.25,137.24,3.6423]
[1726249508420,11.2,137.25,137.23,5.0908]
[1726249510628,14.8419,137.26,137.23,5.0908]
[1726249510817,14.8419,137.26,137.22,5.0482]
[1726249510818,3.6421,137.25,137.22,5.0482]
[1726249511017,3.6421,137.25,137.22,1.4055]
[1726249511324,5.13141632,137.33,137.21,18.42595178]
[1726249511325,11.2,137.23,137.21,3.58774178]
[1726249511524,11.2,137.23,137.19,1.3649]
[1726249511525,11.2,137.22,137.19,1.3649]
[1726249511923,3.6425,137.24,137.21,3.6431]
[1726249512118,11.2,137.23,137.21,3.6431]
[1726249514029,14.8426,137.23,137.21,3.6431]
[1726249514236,14.8426,137.23,137.2,3.6432]
[1726249516527,14.8429,137.22,137.19,5.0084]
[1726249516730,11.2,137.22,137.19,5.0084]
[1726249517326,14.8429,137.22,137.19,5.0084]
[1726249517732,14.8429,137.22,137.2,3.6433]
[1726249517733,11.2,137.22,137.2,3.6433]
[1726249518426,14.843,137.22,137.19,5.0084]
[1726249520129,3.643,137.22,137.19,5.0084]
[1726249521828,14.8427,137.23,137.2,3.6433]
[1726249522735,11.2,137.23,137.19,1.3649]
[1726249523421,14.8429,137.22,137.19,1.3649]
[1726249523825,11.2,137.22,137.19,1.3649]
[1726249524022,14.8429,137.22,137.19,5.0083]
[1726249524234,11.2,137.23,137.19,1.3649]
[1726249524824,14.8427,137.23,137.2,3.6432]
[1726249525920,3.6427,137.23,137.2,3.6432]
[1726249526127,11.2,137.28,137.22,11.2]
[1726249526331,11.2,137.28,137.24,11.2]
[1726249527323,1.4059,137.37,137.27,11.2]
[1726249527531,14.8399,137.34,137.3,14.8406]
[1726249528431,7.60840058,137.43,137.28,1.4456]
[1726249528432,7.60840058,137.43,137.33,11.2]
[1726249528733,11.2,137.39,137.34,11.2]
[1726249528934,3.6388,137.38,137.34,14.8395]
[1726249529531,3.6388,137.38,137.34,18.43176]
[1726249529729,7.60407809,137.46,137.37,11.2]
[1726249529929,47.57510871,137.52,137.35,1.3539]
[1726249529930,11.2,137.4,137.35,1.3539]
[1726249530134,11.2,137.39,137.34,3.59226]
[1726249530341,11.2,137.37,137.34,7.23176]
[1726249530729,11.2,137.39,137.34,14.79226]
[1726249530927,14.8385,137.39,137.35,3.6392]
[1726249531341,14.8385,137.39,137.34,14.79226]
[1726249531632,14.8385,137.39,137.35,3.6393]
[1726249532031,14.8385,137.39,137.35,7.23156]
[1726249532231,14.8387,137.38,137.34,3.6396]
[1726249532538,3.72402993,137.41,137.34,3.59226]
[1726249532539,11.2,137.37,137.34,3.59226]
[1726249532837,11.2,137.36,137.32,16.24149]
[1726249533032,11.2,137.35,137.32,5.04149]
[1726249533226,11.2,137.35,137.32,5.08466]
[1726249533639,11.2,137.35,137.32,8.72476]
[1726249534024,14.8392,137.36,137.32,8.72476]
[1726249534230,14.8392,137.36,137.33,3.6399]
[1726249535140,14.8392,137.36,137.32,19.92476]
[1726249535636,3.6395,137.35,137.32,19.92476]
[1726249536342,14.8392,137.36,137.32,19.92476]
[1726249536538,11.2,137.36,137.32,19.92476]
[1726249536937,14.8393,137.36,137.32,19.92476]
[1726249537533,3.6394,137.35,137.32,19.92476]
[1726249537939,3.6394,137.35,137.32,8.72476]
[1726249538243,3.6394,137.35,137.32,8.68133]
[1726249538442,11.2,137.35,137.3,14.79293]
[1726249538643,3.68023029,137.39,137.3,14.79293]
[1726249538644,11.2,137.34,137.3,11.2]
[1726249539041,11.2,137.33,137.28,12.6456]
[1726249539546,3.6403,137.32,137.29,3.6409]
[1726249539845,3.6403,137.32,137.3,11.2]
[1726249540551,3.6403,137.32,137.29,3.6409]
[1726249540743,14.84,137.33,137.29,3.6409]
[1726249541045,11.2,137.33,137.29,3.6409]
[1726249541443,11.2,137.32,137.28,1.4456]
[1726249541642,11.2,137.32,137.28,12.6456]
[1726249542147,14.8403,137.32,137.29,3.6409]
[1726249542646,1.3534,137.38,137.3,14.8405]
[1726249542847,11.2,137.35,137.31,11.2]
[1726249543043,11.2,137.36,137.32,11.2]
[1726249543249,3.6394,137.35,137.32,11.2]
[1726249543443,3.6394,137.35,137.32,14.84]
[1726249544538,3.6396,137.34,137.32,3.64]
[1726249544738,11.2,137.35,137.31,11.2]
[1726249544944,3.6397,137.34,137.31,11.2]
[1726249545553,3.6397,137.34,137.31,14.8404]
[1726249546157,3.6397,137.34,137.31,18.43359]
[1726249547242,3.6395,137.35,137.32,3.6401]
[1726249547854,3.6397,137.34,137.31,18.43349]
[1726249548647,11.2,137.34,137.31,3.59319]
[1726249549447,3.6401,137.33,137.3,18.43369]
[1726249549943,11.2,137.33,137.3,3.63689]
[1726249550146,11.2,137.32,137.28,5.08249]
[1726249550360,11.2,137.32,137.28,1.4456]
[1726249550542,3.6405,137.31,137.28,5.03839]
[1726249550745,11.2,137.32,137.28,12.6456]
[1726249550950,1.3534,137.38,137.28,12.6456]
[1726249551159,3.6402,137.32,137.29,3.6408]
[1726249551357,1.3534,137.38,137.28,12.6456]
[1726249551552,3.6401,137.33,137.28,12.6456]
[1726249551759,14.8401,137.33,137.3,14.8406]
[1726249551957,11.2,137.33,137.3,14.8406]
[1726249552261,3.6403,137.32,137.29,14.8409]
[1726249554053,3.6405,137.31,137.29,14.8409]
[1726249554360,11.2,137.33,137.29,14.8409]
[1726249554550,3.6403,137.32,137.29,14.8409]
[1726249554750,11.2,137.33,137.29,11.2]
[1726249555151,3.6404,137.32,137.29,11.2]
[1726249555351,3.6404,137.32,137.29,14.8409]
[1726249556961,1.3534,137.38,137.3,14.8405]
[1726249557147,11.2,137.34,137.3,14.8405]
[1726249557562,3.64,137.33,137.3,14.8405]
[1726249558057,3.6401,137.33,137.3,14.8405]
[1726249558559,3.6401,137.33,137.31,3.6404]
[1726249559447,3.6401,137.33,137.3,18.43313]
[1726249560361,3.6402,137.32,137.3,18.43313]
[1726249561860,11.2,137.33,137.3,3.59253]
[1726249562860,3.6403,137.32,137.3,3.59253]
[1726249563252,11.2,137.33,137.3,3.59253]
[1726249563463,11.2,137.36,137.3,14.79253]
[1726249563657,11.2,137.36,137.32,11.2]
[1726249563857,3.6395,137.35,137.32,14.84]
[1726249564768,3.6397,137.34,137.32,14.84]
[1726249565273,1.3534,137.38,137.33,3.6398]
[1726249565567,14.88023029,137.39,137.34,11.2]
[1726249565767,14.88023029,137.39,137.31,1.3727]
[1726249565768,11.2,137.39,137.35,11.2]
[1726249565961,3.6391,137.37,137.35,11.2]
[1726249566165,3.55407623,137.4,137.35,11.2]
[1726249566363,3.6387,137.38,137.36,11.2]
[1726249566757,1.4305,137.44,137.37,11.2]
[1726249566960,3.6382,137.4,137.37,14.8386]
[1726249567171,3.6382,137.4,137.38,11.2]
[1726249567466,3.6382,137.4,137.38,14.8385]
[1726249567668,11.2,137.43,137.38,14.8385]
[1726249567669,3.6379,137.41,137.38,14.8385]
[1726249567869,5.11492755,137.44,137.38,11.2]
[1726249568068,11.2,137.43,137.39,14.8382]
[1726249568262,8.6297,137.48,137.39,14.8382]
[1726249568463,11.2,137.43,137.39,14.8382]
[1726249568862,3.6377,137.42,137.39,14.8382]
[1726249569169,1.3577,137.48,137.41,11.2]
[1726249569363,1.3557,137.5,137.38,5.02319]